fUST/lending_fUST_20250921
["ID","MTS","AMOUNT","RATE_DAILY","PERIOD"]
[386623281,1758441035399,-225.30129456,0.00019385,2]
[386623282,1758441035409,-480.0,0.00019385,2]
[386623283,1758441035418,-484.24660946,0.00019385,2]
[386623284,1758441035427,-480.0,0.00019385,2]
[386623285,1758441035437,-480.0,0.00019385,2]
[386623286,1758441035446,-480.0,0.00019385,2]
[386623287,1758441035455,-482.19678534,0.00019385,2]
[386623288,1758441035464,-476.75317159,0.00019385,2]
[386623289,1758441035473,-480.0,0.00019385,2]
[386623290,1758441035483,-485.71445609,0.00019385,2]
[386623291,1758441035492,-480.0,0.00019385,2]
[386623292,1758441035502,-480.0,0.00019385,2]
[386623293,1758441035511,-480.0,0.00019385,2]
[386623294,1758441035520,-480.0,0.00019385,2]
[386623295,1758441035530,-480.0,0.00019385,2]
[386623296,1758441035539,-480.0,0.00019385,2]
[386623297,1758441035548,-480.0,0.00019385,2]
[386623298,1758441035557,-480.0,0.00019385,2]
[386623299,1758441035567,-480.0,0.00019385,2]
[386623300,1758441035576,-480.0,0.00019385,2]
[386623301,1758441035586,-480.0,0.00019385,2]
[386623302,1758441035595,-846.57,0.00019385,3]
[386623303,1758441035604,-480.0,0.00019385,2]
[386623304,1758441035614,-2000.0,0.00019385,7]
[386623305,1758441035623,-2000.0,0.00019385,7]
[386623306,1758441035632,-1779.4244237,0.00019385,7]
[386623307,1758441035642,-423.29,0.00019385,3]
[386623308,1758441035651,-483.0737749,0.00019385,2]
[386623309,1758441035661,-484.5504158,0.00019385,2]
[386623310,1758441035670,-499.14609969,0.00019385,2]
[386623311,1758441035679,-480.0,0.00019385,2]
[386623312,1758441035688,-480.0,0.00019385,2]
[386623313,1758441035698,-480.0,0.00019385,2]
[386623314,1758441035707,-480.0,0.00019385,2]
[386623315,1758441035716,-596.46988177,0.00019385,2]
[386623316,1758441035725,-480.0,0.00019385,2]
[386623317,1758441035734,-486.25091674,0.00019385,2]
[386623318,1758441035744,-480.0,0.00019385,2]
[386623319,1758441035753,-480.0,0.00019385,2]
[386623320,1758441035762,-486.22794224,0.00019385,2]
[386623321,1758441035771,-480.0,0.00019385,2]
[386623322,1758441035781,-480.0,0.00019385,2]
[386623323,1758441035790,-518.49357628,0.00019385,2]
[386623324,1758441035800,-480.0,0.00019385,2]
[386623325,1758441035810,-488.56798838,0.00019385,2]
[386623326,1758441035819,-480.0,0.00019385,2]
[386623327,1758441035829,-480.0,0.00019385,2]
[386623328,1758441035838,-480.0,0.00019385,2]
[386623329,1758441035848,-192.83295331,0.00019385,2]
[386623330,1758441035857,-480.0,0.00019385,2]
[386623331,1758441035866,-498.88656656,0.00019385,2]
[386623332,1758441035876,-560.10845747,0.00019385,2]
[386623333,1758441035886,-480.0,0.00019385,2]
[386623334,1758441035895,-480.0,0.00019385,2]
[386623335,1758441035906,-480.0,0.00019385,2]
[386623336,1758441036002,-480.0,0.00019385,2]
[386623337,1758441036012,-480.0,0.00019385,2]
[386623338,1758441036022,-484.96303364,0.00019385,2]
[386623339,1758441036031,-480.0,0.00019385,2]
[386623340,1758441036041,-480.0,0.00019385,2]
[386623341,1758441036051,-480.0,0.00019385,2]
[386623342,1758441036062,-480.0,0.00019385,2]
[386623343,1758441036072,-480.0,0.00019385,2]
[386623344,1758441036081,-480.0,0.00019385,2]
[386623345,1758441036091,-480.0,0.00019385,2]
[386623346,1758441036100,-716.1,0.00019385,2]
[386623347,1758441036110,-480.0,0.00019385,2]
[386623348,1758441036119,-480.0,0.00019385,2]
[386623349,1758441036128,-480.0,0.00019385,2]
[386623350,1758441036138,-480.0,0.00019385,2]
[386623351,1758441036147,-480.0,0.00019385,2]
[386623352,1758441036156,-483.22776678,0.00019385,2]
[386623353,1758441036167,-482.81780688,0.00019385,2]
[386623354,1758441036177,-480.0,0.00019385,2]
[386623355,1758441036186,-523.72042284,0.00019385,2]
[386623356,1758441036196,-480.0,0.00019385,2]
[386623357,1758441036206,-480.0,0.00019385,2]
[386623358,1758441036215,-480.0,0.00019385,2]
[386623359,1758441036225,-480.0,0.00019385,2]
[386623360,1758441036234,-480.0,0.00019385,2]
[386623361,1758441036247,-480.0,0.00019385,2]
[386623362,1758441036257,-480.0,0.00019385,2]
[386623363,1758441036267,-480.0,0.00019385,2]
[386623364,1758441036276,-480.0,0.00019385,2]
[386623365,1758441036287,-480.0,0.00019385,2]
[386623366,1758441036296,-480.0,0.00019385,2]
[386623367,1758441036306,-486.93669301,0.00019385,2]
[386623368,1758441036320,-62.17866224,0.00019385,2]
[386623369,1758441036338,-417.82133776,0.00019385,2]
[386623370,1758441036348,-526.70859254,0.00019385,2]
[386623371,1758441036358,-216.43068583,0.00019385,2]
[386623390,1758441038658,-480.0,0.0001938,2]
[386623392,1758441038668,-33.62931417,0.00019385,2]
[386623394,1758441038678,-480.0,0.00019385,2]
[386623396,1758441038688,-480.0,0.00019385,2]
[386623397,1758441038698,-345.42485741,0.00019385,2]
[386623398,1758441038781,-135.65648863,0.00019385,2]
[386623399,1758441038791,-480.0,0.00019385,2]
[386623400,1758441038801,-480.0,0.00019385,2]
[386623401,1758441038811,-275.63161221,0.00019385,2]
[386623402,1758441038822,-480.0,0.00019385,2]
[386623403,1758441038832,-480.0,0.00019385,2]
[386623404,1758441038842,-123.41509094,0.00019385,2]
[386623405,1758441038855,-356.58490906,0.00019385,2]
[386623406,1758441038865,-492.84,0.00019385,2]
[386623407,1758441038875,-480.0,0.00019385,2]
[386623408,1758441038885,-480.0,0.00019385,2]
[386623409,1758441038895,-483.83961096,0.00019385,2]
[386623410,1758441038904,-580.94263843,0.00019385,2]
[386623411,1758441038914,-481.92655188,0.00019385,2]
[386623412,1758441038923,-427.96423798,0.00019385,2]
[386623483,1758441041153,-52.71864487,0.00019385,2]
[386623485,1758441041163,-149.11948996,0.00019386,2]
[386623718,1758441043719,-584.47,0.00019382,2]
[386623719,1758441043729,-686.27,0.00019384,2]
[386623721,1758441043740,-876.97051004,0.00019386,2]
[386623723,1758441043749,-480.0,0.00019386,2]
[386623725,1758441043759,-7429.52,0.00019386,2]
[386623727,1758441043769,-480.0,0.00019386,2]
[386623728,1758441043778,-494.92,0.00019386,2]
[386623730,1758441043788,-151.0,0.00019386,2]
[386623732,1758441043797,-214.384864,0.00019386,2]
[386623734,1758441043807,-480.0,0.00019386,2]
[386623736,1758441043816,-528.98,0.00019386,2]
[386623737,1758441043826,-500.0,0.00019386,2]
[386623739,1758441043835,-686.27,0.0001939,2]
[386623741,1758441043845,-480.0,0.00019394,2]
[386623743,1758441043856,-482.56376045,0.00019394,2]
[386623745,1758441043865,-483.34132093,0.00019394,2]
[386623746,1758441043875,-400.20166346,0.00019394,2]
[386623748,1758441043884,-482.4835058,0.00019394,2]
[386623750,1758441043893,-480.0,0.00019394,2]
[386623752,1758441043902,-480.0,0.00019394,2]
[386623754,1758441043911,-2670.1,0.00019394,2]
[386623755,1758441043921,-480.0,0.00019394,2]
[386623757,1758441043930,-686.27,0.00019394,2]
[386623759,1758441043939,-480.0,0.00019395,2]
[386623761,1758441043948,-480.0,0.00019395,2]
[386623763,1758441043958,-480.0,0.00019395,2]
[386623765,1758441043969,-480.0,0.00019395,2]
[386623766,1758441043979,-484.00080736,0.00019395,2]
[386623768,1758441043988,-466.81610051,0.00019395,2]
[386623770,1758441043997,-480.0,0.00019395,2]
[386623772,1758441044008,-686.27,0.00019395,2]
[386623774,1758441044018,-480.0,0.00019396,2]
[386623776,1758441044027,-480.0,0.00019396,2]
[386623777,1758441044036,-484.31899155,0.00019396,2]
[386623779,1758441044046,-42.55728659,0.00019396,2]
[386624047,1758441047429,1000.0,0.00027,120]
[386626064,1758441279909,-289.80834844,0.00018361,2]
[386626065,1758441282932,-304.40909208,0.00018361,2]
[386626066,1758441307721,153.73950818,0.0001935,14]
[386626072,1758441666579,-160.0,0.00018303,2]
[386626073,1758441666611,-129.77,0.00018341,2]
[386626074,1758441669300,-228.35907675,0.00018341,2]
[386626075,1758441671324,-242.16749244,0.00018341,2]
[386626076,1758441675428,-245.35200011,0.00018341,2]
[386626077,1758441678538,-157.80113774,0.00018341,2]
[386626078,1758441681368,-229.35826634,0.00018341,2]
[386626079,1758441683579,-273.77555186,0.00018341,2]
[386626080,1758441687791,-162.4569937,0.00018341,2]
[386626081,1758441689316,-306.46508034,0.00018341,2]
[386626083,1758441693006,-291.60327287,0.00018341,2]
[386626084,1758441695369,-57.97363972,0.00018341,2]
[386626089,1758441812567,-179.51983585,0.00018168,2]
[386626090,1758441814645,-72.32067915,0.00018168,2]
[386626096,1758441882005,-245.5597898,0.00018109,2]
[386626097,1758441900276,-444.83143748,0.00018361,2]
[386626098,1758441900307,-160.0,0.00018372,2]
[386626099,1758441900340,-1000.0,0.00018378,2]
[386626100,1758441900375,-500.0,0.000184,2]
[386626101,1758441900407,-166.59214323,0.00018799,2]
[386626102,1758441900441,-354.29497484,0.00018818,2]
[386626103,1758441900475,-160.0,0.00018886,2]
[386626104,1758441900507,-169.35839488,0.0001928,2]
[386626105,1758441900539,-300.0,0.00019327,2]
[386626106,1758441900800,-2633.00565924,0.00019328,2]
[386626107,1758441910123,-300.0,0.00019327,2]
[386626108,1758441910159,-1200.0,0.00019327,2]
[386626109,1758441910192,-2266.01131848,0.00019328,2]
[386626110,1758441910477,-2467.98736304,0.00019328,2]
[386626111,1758441910511,-1200.0,0.00019328,2]
[386626112,1758441910548,-500.0,0.00019328,2]
[386626113,1758441910586,-500.0,0.00019328,2]
[386626114,1758441910621,-323.5731535,0.00019328,2]
[386626115,1758441910735,-500.0,0.00019328,2]
[386626116,1758441910772,-229.12445355,0.00019328,2]
[386626117,1758441910808,-500.0,0.00019328,2]
[386626118,1758441910844,-264.85319102,0.00019328,2]
[386626119,1758441910878,-480.0,0.00019328,2]
[386626120,1758441910911,-480.0,0.00019328,2]
[386626121,1758441910945,-480.0,0.00019328,2]
[386626122,1758441910981,-480.0,0.00019328,2]
[386626123,1758441911015,-396.52724508,0.00019328,2]
[386626124,1758441911048,-211.32908933,0.00019328,2]
[386626125,1758441911083,-487.5404281,0.00019329,2]
[386626126,1758441911117,-484.6693546,0.00019329,2]
[386626127,1758441911266,-480.0,0.00019329,2]
[386626128,1758441911300,-480.0,0.00019329,2]
[386626129,1758441911334,-480.0,0.00019329,2]
[386626130,1758441911368,-484.19065132,0.00019329,2]
[386626131,1758441911402,-480.0,0.00019329,2]
[386626132,1758441911437,-367.42950933,0.00019329,2]
[386626133,1758441911471,-482.36171412,0.00019329,2]
[386626134,1758441911504,-406.91699727,0.00019329,2]
[386626135,1758441911538,-150.0,0.00019329,2]
[386626136,1758441911572,-480.0,0.00019329,2]
[386626137,1758441911605,-268.69869495,0.00019329,2]
[386626138,1758441911651,-400.81486602,0.00019329,2]
[386626139,1758441911986,-79.18513398,0.00019329,2]
[386626140,1758441912027,-480.0,0.00019329,2]
[386626141,1758441912068,-480.0,0.00019329,2]
[386626142,1758441912113,-480.0,0.00019329,2]
[386626143,1758441912153,-480.0,0.00019329,2]
[386626144,1758441912191,-480.0,0.00019329,2]
[386626145,1758441912233,-480.0,0.00019329,2]
[386626146,1758441912270,-491.87442836,0.00019329,2]
[386626147,1758441912310,-486.10320963,0.00019329,2]
[386626148,1758441912346,-480.0,0.00019329,2]
[386626149,1758441912384,-480.0,0.00019329,2]
[386626152,1758441920151,-203.38650325,0.00019328,2]
[386626153,1758441920186,-480.0,0.00019329,2]
[386626154,1758441920224,-500.0,0.00019329,2]
[386626155,1758441920262,-480.0,0.00019329,2]
[386626156,1758441920299,-500.0,0.00019329,2]
[386626157,1758441920333,-480.0,0.00019329,2]
[386626158,1758441920366,-480.0,0.00019329,2]
[386626159,1758441920401,-480.0,0.00019329,2]
[386626160,1758441920434,-442.05634277,0.00019329,2]
[386626161,1758441920700,-1379.27893119,0.0001933,2]
[386626162,1758441920731,-10000.01,0.0001933,2]
[386626163,1758441920760,-10000.01,0.0001933,2]
[386626164,1758441920780,-1979.73162061,0.0001933,2]
[386626165,1758441920789,-500.0,0.00019373,2]
[386626166,1758441920799,-500.0,0.00019373,2]
[386626167,1758441920809,-504.50023971,0.00019373,2]
[386626168,1758441920819,-500.0,0.00019373,2]
[386626169,1758441920831,-500.0,0.00019373,2]
[386626170,1758441920841,-500.0,0.00019373,2]
[386626171,1758441920850,-500.0,0.00019373,2]
[386626172,1758441920862,-296.14,0.00019374,3]
[386626173,1758441920871,-888.47,0.00019374,3]
[386626174,1758441920880,-592.29,0.00019375,3]
[386626175,1758441920891,-460.0,0.00019377,2]
[386626176,1758441920900,-500.0,0.00019377,2]
[386626177,1758441920909,-480.0,0.00019378,2]
[386626178,1758441920918,-481.4507663,0.00019378,2]
[386626179,1758441920928,-480.0,0.00019378,2]
[386626180,1758441920938,-337.42737338,0.00019378,2]
[386626181,1758441920974,-142.57262662,0.00019378,2]
[386626182,1758441921007,-481.72114828,0.00019378,2]
[386626183,1758441921040,-480.0,0.00019378,2]
[386626184,1758441921074,-484.6349188,0.00019378,2]
[386626185,1758441921108,-480.0,0.00019378,2]
[386626186,1758441921141,-480.0,0.00019378,2]
[386626188,1758441921174,-353.61861159,0.00019378,2]
[386626189,1758441921207,-480.0,0.00019378,2]
[386626190,1758441921239,-480.0,0.00019378,2]
[386626191,1758441921271,-480.0,0.00019378,2]
[386626192,1758441921304,-480.0,0.00019378,2]
[386626193,1758441921354,-805.08,0.00019378,2]
[386626194,1758441921388,-480.0,0.00019378,2]
[386626195,1758441921422,-480.0,0.00019378,2]
[386626196,1758441921456,-599.03934149,0.00019378,2]
[386626197,1758441921490,-480.0,0.00019378,2]
[386626198,1758441921526,-504.75,0.00019378,2]
[386626199,1758441921660,-759.28,0.00019378,2]
[386626200,1758441921696,-480.0,0.00019378,2]
[386626201,1758441921730,-343.71131702,0.00019378,2]
[386626202,1758441921876,-136.28868298,0.00019378,2]
[386626203,1758441921913,-480.0,0.00019378,2]
[386626204,1758441921947,-480.0,0.00019378,2]
[386626205,1758441921983,-480.0,0.00019378,2]
[386626206,1758441922017,-480.0,0.00019378,2]
[386626207,1758441922052,-500.0,0.00019378,2]
[386626208,1758441922086,-480.0,0.00019379,2]
[386626209,1758441922122,-490.72630955,0.00019379,2]
[386626210,1758441922155,-480.0,0.00019379,2]
[386626211,1758441922188,-480.0,0.00019379,2]
[386626212,1758441922222,-480.0,0.00019379,2]
[386626213,1758441922374,-480.0,0.00019378,2]
[386626214,1758441922409,-480.0,0.00019379,2]
[386626215,1758441922443,-480.0,0.00019379,2]
[386626216,1758441922477,-480.0,0.00019379,2]
[386626217,1758441922513,-1457.6,0.00019379,2]
[386626218,1758441922547,-480.0,0.00019379,2]
[386626219,1758441922580,-480.0,0.00019379,2]
[386626220,1758441922613,-480.0,0.00019379,2]
[386626222,1758441923494,-107.91039689,0.00019329,2]
[386626223,1758441923514,-374.09977455,0.00019329,2]
[386626224,1758441923523,-105.90022545,0.00019379,2]
[386626225,1758441923543,-338.46398858,0.00019379,2]
[386626226,1758441923552,-26.34601142,0.00019379,2]
[386626230,1758441940245,-17.20614775,0.00019328,2]
[386626231,1758441940273,-9965.5977045,0.00019328,2]
[386626232,1758441940311,-480.0,0.00019378,2]
[386626233,1758441940343,-241.65926733,0.00019378,2]
[386626234,1758441940377,-480.0,0.00019378,2]
[386626235,1758441940410,-480.0,0.00019378,2]
[386626236,1758441940442,-453.65398858,0.00019379,2]
[386626237,1758441940475,-480.0,0.00019379,2]
[386626238,1758441940508,-480.0,0.00019379,2]
[386626239,1758441940542,-480.0,0.00019379,2]
[386626240,1758441940576,-576.13,0.00019379,2]
[386626242,1758441940608,-480.0,0.00019379,2]
[386626243,1758441940641,-257.12348818,0.00019379,2]
[386626244,1758441940789,-222.87651182,0.00019379,2]
[386626245,1758441940824,-480.0,0.00019379,2]
[386626246,1758441940861,-480.0,0.00019379,2]
[386626247,1758441940896,-480.0,0.00019379,2]
[386626248,1758441940930,-480.0,0.00019379,2]
[386626249,1758441940965,-480.0,0.00019379,2]
[386626250,1758441941000,-480.0,0.00019379,2]
[386626251,1758441941035,-500.0,0.00019379,2]
[386626252,1758441941071,-518.73,0.00019379,2]
[386626253,1758441941105,-480.0,0.00019379,2]
[386626254,1758441941140,-316.79697636,0.00019379,2]
[386626255,1758441941278,-163.20302364,0.00019379,2]
[386626256,1758441941313,-480.0,0.00019379,2]
[386626257,1758441941346,-480.0,0.0001938,2]
[386626258,1758441941378,-480.0,0.0001938,2]
[386626259,1758441941413,-480.0,0.0001938,2]
[386626260,1758441941446,-480.0,0.0001938,2]
[386626261,1758441941482,-480.0,0.0001938,2]
[386626262,1758441941515,-527.95415741,0.0001938,2]
[386626263,1758441941548,-480.0,0.0001938,2]
[386626264,1758441941582,-480.0,0.0001938,2]
[386626265,1758441941617,-457.6956379,0.0001938,2]
[386626266,1758441941700,-22.3043621,0.0001938,2]
[386626267,1758441941734,-480.0,0.0001938,2]
[386626268,1758441941770,-480.0,0.0001938,2]
[386626269,1758441941804,-480.0,0.0001938,2]
[386626270,1758441941838,-327.4107813,0.0001938,2]
[386626271,1758441941873,-480.0,0.0001938,2]
[386626272,1758441941907,-480.0,0.0001938,2]
[386626273,1758441941939,-480.0,0.0001938,2]
[386626274,1758441941972,-480.0,0.0001938,2]
[386626275,1758441942008,-480.0,0.0001938,2]
[386626276,1758441942040,-505.14209403,0.0001938,2]
[386626277,1758441942074,-130.29552514,0.0001938,2]
[386626278,1758441942232,-349.70447486,0.0001938,2]
[386626279,1758441942267,-480.0,0.0001938,2]
[386626280,1758441942398,-480.0,0.0001938,2]
[386626281,1758441942435,-490.21519446,0.0001938,2]
[386626282,1758441942468,-484.00809483,0.0001938,2]
[386626283,1758441942501,-480.0,0.0001938,2]
[386626284,1758441942534,-480.0,0.0001938,2]
[386626285,1758441942568,-480.0,0.0001938,2]
[386626286,1758441942601,-480.0,0.0001938,2]
[386626287,1758441942634,-392.96808086,0.0001938,2]
[386626288,1758441942669,-326.21830998,0.0001938,2]
[386626289,1758441943752,-153.95644532,0.00019328,2]
[386626290,1758441943772,-326.04355468,0.00019328,2]
[386626291,1758441943781,-66.92452618,0.0001938,2]
[386626292,1758441943802,-86.85716384,0.0001938,2]
[386626293,1758441943811,-393.14283616,0.0001938,2]
[386626294,1758441977223,-411.46858726,0.00019328,2]
[386626295,1758441977257,-480.0,0.00019328,2]
[386626296,1758441977291,-480.0,0.00019329,2]
[386626297,1758441977324,-480.0,0.00019329,2]
[386626298,1758441977358,-480.0,0.00019378,2]
[386626299,1758441977391,-480.0,0.00019378,2]
[386626300,1758441977424,-487.10385957,0.00019378,2]
[386626301,1758441977459,-483.58245117,0.00019378,2]
[386626302,1758441977494,-481.93340819,0.00019378,2]
[386626303,1758441977528,-161.06629365,0.00019378,2]
[386626304,1758441977563,-480.0,0.00019378,2]
[386626305,1758441977801,-189.70080032,0.00019379,2]
[386626306,1758442026123,-333.65042474,0.00019279,2]
[386626314,1758442169413,-1144.46732356,0.00019268,2]
[386626315,1758442169447,-7711.07535288,0.00019268,2]
[386626316,1758442169644,-500.0,0.00019278,2]
[386626317,1758442169684,-500.0,0.00019278,2]
[386626318,1758442169726,-500.0,0.00019278,2]
[386626319,1758442169766,-331.44111259,0.00019278,2]
[386626320,1758442169918,-300.0,0.00019278,2]
[386626321,1758442170060,-5737.12777482,0.00019279,2]
[386626322,1758442218906,-453.03850909,0.00018317,2]
[386626323,1758442224361,-354.23,0.00018317,2]
[386626324,1758442227870,-170.08367808,0.00018317,2]
[386626327,1758442232050,-209.23258736,0.00018317,2]
[386626347,1758442232927,-320.70205247,0.00018317,2]
[386626348,1758442232937,-950.81459628,0.00019279,2]
[386626349,1758442232948,-824.26587541,0.00019279,2]
[386626350,1758442232974,-1039.06181893,0.00019279,2]
[386626351,1758442232984,-169.35839487,0.00019281,2]
[386626352,1758442232993,-126.71714254,0.00019293,2]
[386626496,1758442238732,-33.28285746,0.00019293,2]
[386626498,1758442238742,-160.0,0.00019293,2]
[386626500,1758442238752,-500.0,0.000193,2]
[386626502,1758442238762,-349.1604829,0.00019327,2]
[386626504,1758442238771,-203.49345696,0.00019327,2]
[386626507,1758442238782,-500.0,0.00019327,2]
[386626509,1758442238791,-500.0,0.00019327,2]
[386626510,1758442238801,-500.0,0.00019327,2]
[386626512,1758442238810,-1200.0,0.00019327,2]
[386626515,1758442238820,-300.0,0.00019327,2]
[386626516,1758442238830,-1200.0,0.00019327,2]
[386626519,1758442238839,-2807.6461164,0.00019328,2]
[386626521,1758442238849,-482.70117839,0.00019328,2]
[386626523,1758442238858,-834.38,0.00019328,2]
[386626525,1758442238868,-480.0,0.00019328,2]
[386626527,1758442238878,-480.0,0.00019328,2]
[386626529,1758442238887,-475.48590782,0.00019328,2]
[386626531,1758442238898,-503.72,0.00019328,2]
[386626533,1758442238908,-758.29,0.00019328,2]
[386626535,1758442238917,-480.0,0.00019328,2]
[386626537,1758442238926,-480.0,0.00019328,2]
[386626539,1758442238936,-480.0,0.00019328,2]
[386626541,1758442238945,-480.0,0.00019328,2]
[386626543,1758442238955,-480.0,0.00019328,2]
[386626545,1758442238965,-480.0,0.00019328,2]
[386626547,1758442238975,-480.0,0.00019328,2]
[386626549,1758442238984,-480.0,0.00019328,2]
[386626551,1758442238993,-480.0,0.00019328,2]
[386626553,1758442239003,-480.0,0.00019328,2]
[386626555,1758442239013,-480.0,0.00019328,2]
[386626557,1758442239023,-480.0,0.00019328,2]
[386626559,1758442239032,-480.0,0.00019328,2]
[386626561,1758442239042,-480.0,0.00019328,2]
[386626562,1758442239052,-480.0,0.00019328,2]
[386626565,1758442239062,-480.0,0.00019328,2]
[386626567,1758442239071,-480.0,0.00019328,2]
[386626569,1758442239081,-1455.19,0.00019328,2]
[386626570,1758442239090,-480.0,0.00019328,2]
[386626572,1758442239100,-483.6859644,0.00019329,2]
[386626574,1758442239110,-491.11335738,0.00019329,2]
[386626576,1758442239119,-485.46831476,0.00019329,2]
[386626578,1758442239128,-480.0,0.00019329,2]
[386626580,1758442239138,-480.0,0.00019329,2]
[386626582,1758442239147,-480.0,0.00019329,2]
[386626584,1758442239156,-480.0,0.00019329,2]
[386626586,1758442239166,-480.0,0.00019329,2]
[386626588,1758442239176,-299.23472768,0.00019329,2]
[386626590,1758442239186,-480.0,0.00019329,2]
[386626592,1758442239195,-480.0,0.00019329,2]
[386626594,1758442239205,-480.0,0.00019329,2]
[386626596,1758442239215,-484.30867886,0.00019329,2]
[386626599,1758442239224,-480.0,0.00019329,2]
[386626601,1758442239234,-480.0,0.00019329,2]
[386626603,1758442239243,-249.32984221,0.00019329,2]
[386626605,1758442239255,-480.0,0.00019329,2]
[386626607,1758442239264,-480.0,0.00019329,2]
[386626609,1758442239274,-475.76567122,0.00019329,2]
[386626611,1758442239283,-480.0,0.00019329,2]
[386626612,1758442239297,-480.0,0.00019329,2]
[386626614,1758442239307,-480.0,0.00019329,2]
[386626617,1758442239316,-291.81084833,0.00019329,2]
[386626619,1758442239325,-475.22038874,0.00019329,2]
[386626621,1758442239335,-269.26346373,0.00019329,2]
[386626622,1758442239344,-480.0,0.00019329,2]
[386626625,1758442239353,-480.0,0.00019329,2]
[386626627,1758442239362,-3730.713232,0.00019372,2]
[386626628,1758442239372,-503.96367499,0.00019373,2]
[386626630,1758442239385,-388.76413984,0.00019373,2]
[386626636,1758442239428,-37.07226942,0.00019373,2]
[386626638,1758442239439,-74.16359074,0.00019373,2]
[386626640,1758442239448,-500.0,0.00019373,2]
[386626642,1758442239457,-500.0,0.00019373,2]
[386626644,1758442239466,-500.0,0.00019373,2]
[386626646,1758442239475,-500.0,0.00019373,2]
[386626648,1758442239484,-500.0,0.00019373,2]
[386626650,1758442239494,-500.0,0.00019373,2]
[386626652,1758442239503,-500.0,0.00019373,2]
[386626654,1758442239512,-508.58252175,0.00019373,2]
[386626656,1758442239522,-203.54508482,0.00019378,2]
[386626658,1758442239531,-480.0,0.00019378,2]
[386626660,1758442239540,-480.0,0.00019378,2]
[386626662,1758442239549,-480.0,0.00019378,2]
[386626664,1758442239559,-480.0,0.00019378,2]
[386626666,1758442239568,-480.0,0.00019378,2]
[386626668,1758442239577,-479.14998836,0.00019378,2]
[386626670,1758442239586,-480.0,0.00019378,2]
[386626671,1758442239595,-480.0,0.00019378,2]
[386626673,1758442239606,-482.64249567,0.00019378,2]
[386626675,1758442239615,-480.0,0.00019378,2]
[386626677,1758442239624,-480.0,0.00019378,2]
[386626679,1758442239634,-480.0,0.00019378,2]
[386626681,1758442239643,-480.0,0.00019378,2]
[386626683,1758442239651,-480.0,0.00019378,2]
[386626685,1758442239661,-480.0,0.00019378,2]
[386626687,1758442239670,-480.0,0.00019378,2]
[386626689,1758442239679,-726.2,0.00019378,2]
[386626691,1758442239688,-480.0,0.00019378,2]
[386626693,1758442239697,-488.44402417,0.00019378,2]
[386626695,1758442239706,-333.79785583,0.00019378,2]
[386626697,1758442239718,-146.20214417,0.00019378,2]
[386626699,1758442239727,-480.0,0.00019378,2]
[386626701,1758442239736,-480.0,0.00019378,2]
[386626703,1758442239745,-480.0,0.00019378,2]
[386626705,1758442239755,-480.0,0.00019378,2]
[386626707,1758442239764,-480.0,0.00019378,2]
[386626709,1758442239774,-480.0,0.00019378,2]
[386626711,1758442239784,-505.14209403,0.00019378,2]
[386626713,1758442239793,-494.64339422,0.00019378,2]
[386626715,1758442239802,-212.76802864,0.00019378,2]
[386626717,1758442239811,-1430.04,0.00019378,2]
[386626719,1758442239820,-461.57291672,0.00019378,2]
[386626720,1758442239829,-480.0,0.00019378,2]
[386626722,1758442239839,-480.0,0.00019378,2]